bitfinex-derivatives/quotes_SOLF0:USTF0_20241206
["timestamp","ask_amount","ask_price","bid_price","bid_amount"]
[1733501981530,8.59557182,238.13,238.08,2.0972]
[1733501981731,6.49877182,238.13,238.06,6.49877182]
[1733501981933,6.49877182,238.11,238.0,8.0183]
[1733501982126,6.49877182,238.11,238.04,6.49877182]
[1733501983226,8.59587182,238.11,238.05,2.0974]
[1733501983443,6.49877182,238.11,238.05,2.0974]
[1733501983724,2.0971,238.1,238.06,2.0974]
[1733501983929,6.49877182,238.11,238.04,6.49877182]
[1733501984121,2.0969,238.12,238.08,2.0972]
[1733501984324,9.37877182,238.13,238.06,6.49877182]
[1733501986627,11.47567182,238.13,238.06,6.49877182]
[1733501987227,11.47567182,238.13,238.09,2.0971]
[1733501987424,4.9769,238.13,238.08,6.49877182]
[1733501987727,6.49877182,238.15,238.1,2.097]
[1733501987938,6.49877182,238.15,238.08,6.49877182]
[1733501989729,2.0968,238.13,238.09,2.0972]
[1733501989931,6.49877182,238.15,238.08,6.49877182]
[1733501990234,2.0967,238.14,238.1,2.0971]
[1733501990530,6.49877182,238.15,238.08,6.49877182]
[1733501990943,2.0968,238.14,238.1,2.097]
[1733501991424,2.0968,238.13,238.09,2.0971]
[1733501992125,2.0968,238.13,238.08,6.49877182]
[1733501992326,2.0968,238.13,238.1,2.0971]
[1733501993538,6.49877182,238.15,238.08,6.49877182]
[1733501994733,2.0968,238.13,238.09,2.0971]
[1733501995728,2.0968,238.13,238.08,6.49877182]
[1733501995928,6.49877182,238.18,238.1,6.49877182]
[1733501996430,2.0966,238.16,238.12,2.0969]
[1733501996829,8.59537182,238.16,238.12,2.0969]
[1733501997036,6.49877182,238.14,238.08,2.5135]
[1733501997235,6.49877182,238.14,238.07,2.88]
[1733501997430,2.097,238.12,238.09,2.0971]
[1733501997838,6.49877182,238.14,238.09,2.0971]
[1733501998636,2.0968,238.13,238.09,2.0971]
[1733502000542,6.49877182,238.12,238.02,2.88]
[1733502000836,6.49877182,238.12,238.01,2.7461]
[1733502001340,6.49877182,238.12,238.04,6.49877182]
[1733502001341,2.0973,238.08,238.04,6.49877182]
[1733502001539,6.49877182,238.1,238.04,6.49877182]
[1733502001736,6.49877182,238.08,238.0,5.1383]
[1733502001941,6.49877182,238.08,238.01,6.49877182]
[1733502002238,2.0974,238.06,238.01,8.59667182]
[1733502002434,6.49877182,238.08,238.01,8.59667182]
[1733502002641,6.49877182,238.08,238.01,6.49877182]
[1733502002832,2.0975,238.06,238.01,6.49877182]
[1733502003040,6.49877182,238.11,238.03,6.49877182]
[1733502003433,6.49877182,238.13,238.05,6.49877182]
[1733502004041,6.49877182,238.11,238.05,6.49877182]
[1733502004544,2.0971,238.1,238.03,6.49877182]
[1733502005141,6.49877182,238.13,238.06,2.0973]
[1733502005338,2.0968,238.13,238.09,6.49877182]
[1733502005544,9.37877182,238.15,238.09,6.49877182]
[1733502005738,6.49877182,238.15,238.09,6.49877182]
[1733502006146,6.49877182,238.15,238.07,6.49877182]
[1733502006741,2.0967,238.14,238.07,6.49877182]
[1733502007241,6.49877182,238.15,238.07,6.49877182]
[1733502007447,8.59547182,238.15,238.1,2.0971]
[1733502008550,2.0967,238.14,238.1,2.0971]
[1733502009555,6.49877182,238.15,238.07,6.49877182]
[1733502009753,6.49877182,238.15,238.04,2.88]
[1733502009754,2.0966,238.15,238.11,2.097]
[1733502011751,8.59537182,238.15,238.11,2.097]
[1733502012255,4.1899,238.35,238.13,6.49877182]
[1733502012456,6.49877182,238.23,238.15,6.49877182]
[1733502012753,6.49877182,238.17,238.11,2.88]
[1733502013351,2.0966,238.15,238.1,6.49877182]
[1733502013856,2.0966,238.15,238.11,2.0969]
[1733502014255,2.0965,238.16,238.12,2.0969]
[1733502015754,6.49877182,238.49,238.15,19.07877182]
[1733502015961,6.49877182,238.41,238.22,5.84535505]
[1733502016165,6.49877182,238.37,238.23,2.88]
[1733502016362,6.49877182,238.37,238.31,6.49877182]
[1733502016757,2.88,238.39,238.33,6.49877182]
[1733502017058,2.88,238.43,238.38,6.49877182]
[1733502017259,2.88,238.43,238.4,6.49877182]
[1733502017461,2.094,238.46,238.4,6.49877182]
[1733502017761,9.37877182,238.49,238.42,6.49877182]
[1733502017960,2.0939,238.47,238.43,1.0480858]
[1733502018262,2.88,238.49,238.36,10.12438465]
[1733502018454,2.88,238.49,238.37,2.72510127]
[1733502018660,4.9737,238.49,238.39,10.12438465]
[1733502018868,2.88,238.49,238.39,10.12438465]
[1733502019058,2.88,238.49,238.43,2.0941]
[1733502019262,2.88,238.54,238.42,10.12438465]
[1733502019465,0.62703334,238.53,238.42,10.12438465]
[1733502019655,2.88,238.55,238.42,10.12438465]
[1733502019858,0.62696936,238.54,238.42,10.12438465]
[1733502020258,2.88,238.55,238.42,10.12438465]
[1733502021470,15.41718465,238.6,238.45,10.12438465]
[1733502021665,3.50694511,238.59,238.45,10.12438465]
[1733502021872,0.62694511,238.58,238.45,10.12438465]
[1733502022170,0.62694511,238.58,238.47,2.0938]
[1733502022665,2.88,238.59,238.47,2.0938]
[1733502022868,15.54918465,238.6,238.48,10.12438465]
[1733502024364,15.54918465,238.6,238.45,10.12438465]
[1733502024567,0.62698799,238.59,238.45,10.12438465]
[1733502024869,2.0938,238.47,238.43,2.5098]
[1733502025169,13.00438465,238.51,238.36,13.00438465]
[1733502025360,10.12438465,238.48,238.37,1.04808441]
[1733502025672,13.00438465,238.48,238.33,17.99488465]
[1733502026269,2.0945,238.39,238.33,17.99488465]
[1733502026472,10.12438465,238.45,238.33,17.99488465]
[1733502027073,2.0945,238.4,238.33,20.08988465]
[1733502027675,2.0945,238.39,238.33,20.08988465]
[1733502027870,13.00438465,238.48,238.33,20.08988465]
[1733502028074,13.00438465,238.48,238.34,2.0949]
[1733502028275,13.00438465,238.48,238.35,1.04822382]
[1733502028571,13.00438465,238.48,238.34,2.0949]
[1733502028966,13.00438465,238.48,238.35,2.0949]
[1733502030071,2.88,238.47,238.35,2.0949]
[1733502030767,2.88,238.47,238.33,17.99488465]
[1733502030976,5.6322,238.49,238.36,10.12438465]
[1733502031176,2.86,238.49,238.36,10.12438465]
[1733502031371,2.86,238.52,238.39,10.12438465]
[1733502031677,10.12438465,238.54,238.39,10.12438465]
[1733502031879,12.98438465,238.54,238.39,10.12438465]
[1733502032273,2.0937,238.49,238.42,2.0942]
[1733502032470,2.86,238.54,238.42,10.12438465]
[1733502033179,2.0936,238.5,238.45,2.094]
[1733502033876,2.0935,238.51,238.45,2.094]
[1733502035280,2.86,238.54,238.42,10.12438465]
[1733502035281,2.0933,238.53,238.47,2.0938]
[1733502035481,8.0343,238.62,238.45,10.12438465]
[1733502035482,10.12438465,238.6,238.45,10.12438465]
[1733502035682,2.86,238.61,238.48,10.12438465]
[1733502035883,2.0929,238.58,238.49,2.0936]
[1733502036078,10.12438465,238.57,238.33,2.5959]
[1733502036286,10.12438465,238.43,238.34,1.04779361]
[1733502036487,10.12438465,238.43,238.31,2.0952]
[1733502036676,10.12438465,238.43,238.32,1.04824263]
[1733502036882,10.12438465,238.43,238.29,2.86]
[1733502037080,2.0946,238.38,238.32,2.0951]
[1733502037283,10.12438465,238.43,238.29,2.86]
[1733502037482,2.095,238.34,238.3,1.04832649]
[1733502037687,10.12438465,238.4,238.28,8.1893]
[1733502038078,2.0951,238.32,238.28,5.3293]
[1733502038287,10.12438465,238.4,238.28,5.3293]
[1733502038479,10.12438465,238.37,238.25,2.86]
[1733502038687,2.095,238.34,238.25,2.86]
[1733502039378,2.0951,238.33,238.27,2.0955]
[1733502040585,2.095,238.34,238.28,2.0955]
[1733502040788,2.86,238.39,238.25,2.86]
[1733502041187,2.095,238.34,238.27,2.0956]
[1733502041885,2.0951,238.33,238.27,2.0956]
[1733502042385,2.86,238.39,238.25,4.9557]
[1733502042991,2.86,238.39,238.26,2.0956]
[1733502043283,2.86,238.39,238.3,2.0952]
[1733502043284,2.0948,238.36,238.3,2.0952]
[1733502043492,26.79268591,238.44,238.3,2.0952]
[1733502043690,2.0945,238.4,238.3,2.0952]
[1733502043891,26.79268591,238.44,238.3,2.0952]
[1733502044392,26.79268591,238.44,238.26,2.6219]
[1733502044393,2.095,238.34,238.29,2.0954]
[1733502044585,16.21998591,238.4,238.26,2.6219]
[1733502044988,2.0953,238.3,238.26,2.6219]
[1733502045381,16.21998591,238.4,238.27,2.0955]
[1733502045585,16.21998591,238.4,238.26,2.6219]
[1733502046895,2.0951,238.33,238.28,2.0955]
[1733502047587,2.0952,238.31,238.27,2.0956]
[1733502050790,2.0946,238.38,238.33,2.095]
[1733502051493,18.88618591,238.44,238.34,2.0949]
[1733502051494,2.0946,238.39,238.34,2.0949]
[1733502051784,16.21998591,238.44,238.31,2.86]
[1733502051987,5.2108,238.55,238.31,2.86]
[1733502051988,16.21998591,238.48,238.31,2.86]
[1733502052593,16.21998591,238.48,238.39,2.0945]
[1733502053693,16.21998591,238.48,238.37,2.86]
[1733502053987,2.0945,238.4,238.37,2.86]
[1733502054192,2.86,238.49,238.26,2.6219]
[1733502054193,16.21998591,238.44,238.26,2.6219]
[1733502054388,16.21998591,238.44,238.3,2.0952]
[1733502054389,2.0945,238.39,238.3,2.0952]
[1733502054593,16.21998591,238.4,238.27,2.86]
[1733502054988,16.21998591,238.4,238.26,2.6219]
[1733502056096,2.0953,238.31,238.27,2.0956]
[1733502056285,16.21998591,238.4,238.26,2.6219]
[1733502056692,16.21998591,238.4,238.27,2.0955]
[1733502056995,16.21998591,238.4,238.26,2.6219]
[1733502057195,2.0955,238.29,238.25,2.0957]
[1733502057491,19.07998591,238.36,238.24,2.86]
[1733502058597,2.0952,238.31,238.26,2.0957]
[1733502059697,19.07998591,238.36,238.26,2.0957]
[1733502059898,2.0953,238.3,238.26,2.0957]
[1733502060396,2.0956,238.27,238.22,5.6291]
[1733502060597,19.07998591,238.36,238.2,2.86]
[1733502060795,19.07998591,238.36,238.21,2.86]
[1733502060997,2.0953,238.31,238.21,2.86]
[1733502061299,19.07998591,238.36,238.21,2.86]
[1733502062101,10.1397316,238.35,238.21,12.9997316]
[1733502062493,2.0954,238.3,238.25,2.0957]
[1733502062691,10.1397316,238.35,238.21,12.9997316]
[1733502063099,2.0956,238.27,238.21,12.9997316]
[1733502063295,10.1397316,238.35,238.21,12.9997316]
[1733502064397,10.1397316,238.35,238.25,2.0957]
[1733502065093,2.0958,238.25,238.21,2.86]
[1733502065296,10.1397316,238.32,238.21,2.0961]
[1733502065595,10.1397316,238.29,238.16,5.3542]
[1733502065898,10.1397316,238.26,238.05,25.42046034]
[1733502066097,10.1397316,238.23,238.03,5.2782]
[1733502066302,10.1397316,238.2,238.07,12.2370316]
[1733502066499,12.9997316,238.2,238.07,10.1397316]
[1733502066696,12.9997316,238.2,238.05,2.5136]
[1733502066895,10.1397316,238.17,238.04,12.2373316]
[1733502067095,10.1397316,238.17,238.04,10.1397316]
[1733502067299,2.0972,238.09,238.04,10.1397316]
[1733502067899,10.1397316,238.17,238.04,10.1397316]
[1733502068096,7.7361,238.19,238.03,8.1382]
[1733502068500,2.0968,238.14,238.07,2.0973]
[1733502068701,7.7361,238.19,238.07,2.0973]
[1733502068896,7.7361,238.19,238.03,8.1382]
[1733502069097,16.2453443,238.17,238.03,2.86]
[1733502069401,16.2453443,238.17,237.97,2.5136]
[1733502069402,16.2453443,238.17,237.98,2.6037]
[1733502069601,16.2453443,238.13,237.98,2.6037]
[1733502069801,2.86,238.12,237.94,2.86]
[1733502070205,2.86,238.12,237.92,16.2453443]
[1733502070400,16.2453443,238.09,237.93,4.9585]
[1733502070802,2.098,238.0,237.93,4.9585]
[1733502071004,2.86,238.05,237.93,2.86]
[1733502071510,2.86,238.05,237.91,2.6037]
[1733502072601,2.0982,237.97,237.91,4.7024]
[1733502072801,2.86,238.05,237.88,19.1053443]
[1733502073713,2.098,238.0,237.94,2.0984]
[1733502073912,2.098,238.0,237.88,19.1053443]
[1733502073913,2.86,238.05,237.88,19.1053443]
[1733502074309,2.86,238.05,237.92,2.0986]
[1733502074508,2.86,238.05,237.88,19.1053443]
[1733502075011,19.1053443,238.05,237.88,19.1053443]
[1733502075912,19.1053443,238.05,237.88,2.86]
[1733502076502,19.1053443,238.05,237.86,2.7416]
[1733502076704,19.1053443,238.05,237.88,16.2453443]
[1733502077703,2.0984,237.95,237.88,16.2453443]
[1733502078511,2.0984,237.95,237.79,2.10269565]
[1733502078512,16.2453443,238.01,237.87,2.099]
[1733502078702,16.2453443,238.01,237.82,16.2453443]
[1733502079108,2.0986,237.93,237.86,2.0992]
[1733502079408,2.0986,237.93,237.82,16.2453443]
[1733502079606,2.86,237.98,237.82,16.2453443]
[1733502079912,2.0985,237.95,237.82,16.2453443]
[1733502080511,2.86,238.04,237.86,16.2453443]
[1733502080709,2.0982,237.98,237.93,2.0985]
[1733502081213,2.0981,237.99,237.87,2.86]
[1733502081608,2.6564,238.06,237.9,16.2453443]
[1733502081913,5.5164,238.06,237.91,2.674]
[1733502082303,16.2453443,238.05,237.91,2.674]
[1733502083915,2.0981,237.98,237.93,2.0985]
[1733502084214,16.2453443,238.05,237.91,2.674]
[1733502084517,2.0983,237.96,237.91,2.674]
[1733502084716,16.2453443,238.05,237.91,2.674]
[1733502086214,2.6035,238.07,237.93,16.2453443]
[1733502086413,2.6035,238.07,237.94,2.86]
[1733502086612,2.6035,238.07,237.99,2.098]
[1733502086613,2.0975,238.05,237.99,2.098]
[1733502086803,2.0975,238.05,237.94,2.86]
[1733502087008,2.6035,238.07,237.94,2.86]
[1733502087408,2.6035,238.07,238.0,2.0979]
[1733502087615,16.2453443,238.09,237.94,2.86]
[1733502087813,2.0973,238.07,237.98,2.0981]
[1733502088013,11.82922949,238.1,237.96,10.16051949]
[1733502089609,11.82922949,238.1,237.99,10.16051949]
[1733502089610,1.66871,238.1,237.99,10.16051949]
[1733502089808,1.66871,238.1,238.0,2.84]
[1733502090917,3.76581,238.1,238.05,2.0975]
[1733502091116,11.82922949,238.1,238.0,2.84]
[1733502091316,11.82922949,238.1,238.02,2.0977]
[1733502091317,2.0974,238.06,238.02,2.0977]
[1733502091514,10.16051949,238.07,238.0,2.84]
[1733502092110,11.82922949,238.1,238.01,2.0978]
[1733502092314,11.82922949,238.1,238.0,2.84]
[1733502093409,11.82922949,238.1,238.02,2.0978]
[1733502093610,11.82922949,238.1,238.0,2.84]
[1733502094011,11.82922949,238.1,237.96,10.16051949]
[1733502094211,10.16051949,238.07,237.95,2.84]
[1733502094514,2.0976,238.04,237.99,2.098]
[1733502094709,2.0976,238.04,237.95,2.84]
[1733502095108,2.0976,238.04,237.93,10.16051949]
[1733502095109,10.16051949,238.07,237.93,10.16051949]
[1733502095310,10.16051949,238.07,237.94,2.84]
[1733502095716,2.0977,238.04,237.98,2.0981]
[1733502095920,10.16051949,238.07,237.98,2.0981]
[1733502096321,2.0978,238.03,237.98,2.0981]
[1733502097125,2.0978,238.02,237.98,2.0981]
[1733502097921,10.16051949,238.07,237.94,2.84]
[1733502098724,10.16051949,238.07,237.98,2.0981]
[1733502099124,10.16051949,238.07,237.94,2.84]
[1733502099315,4.40051,238.1,237.97,10.16051949]
[1733502099316,2.0974,238.06,237.97,10.16051949]
[1733502099727,2.0974,238.06,238.02,2.0978]
[1733502099921,2.0973,238.07,237.97,10.16051949]
[1733502100322,14.56102949,238.1,237.97,10.16051949]
[1733502100827,14.56102949,238.1,237.99,2.098]
[1733502101326,2.0976,238.04,237.99,2.098]
[1733502101717,14.56102949,238.1,237.99,2.098]
[1733502101923,2.0976,238.05,238.0,2.0979]
[1733502102125,14.56102949,238.1,237.97,10.16051949]
[1733502102527,2.0975,238.06,238.02,2.0977]
[1733502103124,14.56102949,238.1,238.0,2.0979]
[1733502103323,14.56102949,238.1,237.97,10.16051949]
[1733502103625,14.56102949,238.1,237.94,13.00051949]
[1733502103820,14.56102949,238.1,237.99,2.098]
[1733502104027,14.56102949,238.1,237.94,13.00051949]
[1733502104423,2.0978,238.02,237.98,2.0981]
[1733502105426,10.16051949,238.07,237.94,10.16051949]
[1733502105626,2.84,238.05,237.92,5.3848]
[1733502105819,10.16051949,238.04,237.92,5.3848]
[1733502106024,10.16051949,238.04,237.91,12.83451949]
[1733502106221,10.16051949,238.04,237.9,2.84]
[1733502106222,10.16051949,238.04,237.88,13.00051949]
[1733502107820,10.16051949,238.04,237.91,2.0987]
[1733502108323,2.0984,237.96,237.91,2.0987]
[1733502108631,10.16051949,238.04,237.91,2.0987]
[1733502108825,2.0983,237.96,237.91,2.0987]
[1733502109033,10.16051949,238.04,237.91,2.0987]
[1733502109222,2.84,238.05,237.9,2.0988]
[1733502109421,10.16051949,238.01,237.9,2.0988]
[1733502109730,10.16051949,238.01,237.88,10.16051949]
[1733502109731,2.0987,237.92,237.88,10.16051949]
[1733502109929,2.0987,237.92,237.88,12.25941949]
[1733502110325,2.0987,237.91,237.88,2.0989]
[1733502110525,10.16051949,237.95,237.79,2.10269565]
[1733502110724,2.84,237.94,237.79,2.10269565]
[1733502111025,10.16051949,237.92,237.79,2.10269565]
[1733502111328,2.0991,237.87,237.79,2.10269565]
[1733502111632,10.16051949,237.92,237.79,2.10269565]
[1733502112030,10.16051949,237.92,237.8,2.0996]
[1733502112335,2.0994,237.83,237.77,12.92111949]
[1733502112531,10.16051949,237.92,237.77,12.92111949]
[1733502112932,2.0992,237.86,237.77,12.92111949]
[1733502113235,10.16051949,237.89,237.73,2.6809]
[1733502113528,2.5333,237.97,237.77,10.16051949]
[1733502113727,2.84,237.92,237.85,2.0993]
[1733502113936,2.84,237.92,237.8,10.16051949]
[1733502113937,2.0987,237.91,237.81,2.631]
[1733502114134,2.84,237.92,237.81,2.631]
[1733502114336,2.84,237.92,237.85,2.0992]
[1733502114532,2.84,237.92,237.81,2.631]
[1733502114832,10.16051949,237.95,237.81,2.631]
[1733502115129,2.0987,237.92,237.81,2.631]
[1733502115326,2.0987,237.92,237.86,2.0991]
[1733502115527,2.0988,237.91,237.86,2.0991]
[1733502115728,13.00051949,237.95,237.83,10.16051949]
[1733502115936,13.00051949,237.95,237.86,2.0992]
[1733502116232,2.0987,237.91,237.86,2.0992]
[1733502116532,2.0987,237.91,237.84,2.0993]
[1733502116733,10.16051949,237.95,237.84,2.0993]
[1733502117039,10.16051949,237.95,237.81,2.631]
[1733502117335,2.0989,237.9,237.81,2.631]
[1733502117734,2.0989,237.9,237.85,2.0993]
[1733502117935,2.0989,237.9,237.81,2.631]
[1733502118134,2.0989,237.89,237.81,2.631]
[1733502118535,2.0988,237.9,237.84,2.0993]
[1733502118934,2.0988,237.9,237.81,2.631]
[1733502119134,2.0987,237.91,237.85,2.0992]
[1733502119332,10.16051949,237.95,237.85,2.0992]
[1733502119836,2.0986,237.92,237.85,2.0992]
[1733502120037,10.16051949,237.95,237.85,2.0992]
[1733502121934,2.0988,237.91,237.81,2.631]
[1733502122136,10.16051949,237.95,237.86,2.0991]
[1733502122641,2.0988,237.9,237.85,2.0993]
[1733502122943,10.16051949,237.95,237.81,2.631]
[1733502123739,10.16051949,237.95,237.84,2.0993]
[1733502124441,2.0989,237.9,237.85,2.0992]
[1733502124836,2.0989,237.9,237.86,2.0991]
[1733502125139,10.16051949,237.95,237.81,2.631]
[1733502125544,10.16051949,237.95,237.87,2.099]
[1733502125839,2.0987,237.92,237.87,2.099]
[1733502126047,10.16051949,237.95,237.81,2.631]
[1733502126240,2.0986,237.93,237.81,2.631]
[1733502126635,10.16051949,237.95,237.81,2.631]
[1733502126942,2.0985,237.94,237.81,2.631]
[1733502127446,2.0983,237.96,237.92,2.0986]
[1733502127650,12.87431949,237.98,237.84,2.84]
[1733502127943,2.84,238.07,237.89,10.16051949]
[1733502128145,0.62551012,238.06,237.9,2.84]
[1733502128339,2.0977,238.04,237.99,2.098]
[1733502128544,10.16051949,238.05,237.93,10.16051949]
[1733502128745,10.16051949,238.05,237.91,2.5194]
[1733502128946,2.0979,238.0,237.96,2.0982]
[1733502129145,10.16051949,238.05,237.91,2.5194]
[1733502129642,10.16051949,238.05,237.92,10.16051949]
[1733502130545,2.0978,238.02,237.98,2.0981]
[1733502131040,10.16051949,238.05,237.92,10.16051949]
[1733502131642,13.00051949,238.08,237.92,10.16051949]
[1733502131843,13.00051949,238.08,237.95,10.16051949]
[1733502132042,13.00051949,238.08,237.96,2.84]
[1733502132443,10.16051949,238.08,237.96,2.84]
[1733502132652,10.16051949,238.11,237.96,2.84]
[1733502133039,2.0974,238.06,238.02,2.0977]
[1733502133243,10.16051949,238.11,237.96,2.84]
[1733502133443,2.0973,238.08,238.03,2.0976]
[1733502133649,10.16051949,238.11,238.03,2.0976]
[1733502133845,10.16051949,238.11,237.98,10.16051949]
[1733502134050,2.0973,238.07,238.01,2.0978]
[1733502134248,10.16051949,238.11,237.98,10.16051949]
[1733502134748,0.62599418,238.1,237.96,5.4554]
[1733502134952,1.2519695,238.1,237.96,5.4554]
[1733502135143,0.62599418,238.1,237.96,5.4554]
[1733502135346,0.62598096,238.09,238.0,2.0979]
[1733502135648,0.62599418,238.1,238.0,2.0979]
[1733502136049,2.0976,238.04,238.0,2.0979]
[1733502136553,10.16051949,238.08,237.95,10.16051949]
[1733502136749,2.84,238.07,237.92,13.00051949]
[1733502136945,2.84,238.07,237.96,2.0982]
[1733502137246,10.16051949,238.05,237.91,2.5194]
[1733502137451,10.16051949,238.02,237.91,4.6181]
[1733502137651,2.84,238.01,237.91,2.5194]
[1733502137954,2.84,238.01,237.92,10.16051949]
[1733502137955,2.0981,237.99,237.92,10.16051949]
[1733502138155,2.84,238.01,237.92,10.16051949]
[1733502138454,2.098,237.99,237.92,10.16051949]
[1733502138653,2.84,238.01,237.92,10.16051949]
[1733502138855,10.16051949,238.05,237.92,10.16051949]
[1733502139056,2.84,238.06,237.95,10.16051949]
[1733502139354,2.84,238.06,237.99,2.098]
[1733502139750,2.84,238.06,237.97,2.0981]
[1733502140253,2.84,238.06,238.0,2.0979]
[1733502140453,2.84,238.06,237.95,13.00051949]
[1733502140952,2.84,238.06,238.0,2.0979]
[1733502140953,2.0976,238.04,238.0,2.0979]
[1733502141145,2.84,238.06,237.95,13.00051949]
[1733502141347,2.84,238.06,237.96,2.0982]
[1733502142254,2.098,238.0,237.95,2.0984]
[1733502142455,2.84,238.06,237.92,10.16051949]
[1733502143250,2.098,238.0,237.92,10.16051949]
[1733502143953,2.0981,237.99,237.92,10.16051949]
[1733502144151,2.84,238.06,237.92,10.16051949]
[1733502144152,10.16051949,238.05,237.92,10.16051949]
[1733502144357,10.16051949,238.05,237.94,2.0985]
[1733502144753,10.16051949,238.05,237.92,10.16051949]
[1733502145049,10.16051949,238.05,237.91,2.5194]
[1733502145255,10.16051949,238.02,237.91,2.5194]
[1733502145651,2.0985,237.95,237.91,2.5194]
[1733502145858,2.84,238.0,237.91,2.5194]
[1733502148556,2.0986,237.94,237.91,2.5194]
[1733502149058,2.0986,237.93,237.91,2.5194]
[1733502149257,2.84,238.0,237.91,2.5194]
[1733502149457,10.16051949,237.99,237.86,10.16051949]
[1733502149753,2.84,238.0,237.82,1.275]
[1733502149754,10.16051949,237.96,237.82,1.275]
[1733502150059,10.16051949,237.96,237.84,2.0993]
[1733502150260,10.16051949,237.96,237.82,11.43551949]
[1733502150758,0.62563148,237.95,237.82,11.43551949]
[1733502150948,2.82,237.94,237.82,1.275]
[1733502151153,2.82,237.94,237.85,10.16051949]
[1733502151360,2.0989,237.89,237.85,10.16051949]
[1733502151559,2.0989,237.89,237.82,11.43551949]
[1733502151751,2.82,237.94,237.82,11.43551949]
[1733502151957,10.16051949,237.93,237.82,1.275]
[1733502152160,2.0991,237.88,237.82,1.275]
[1733502152961,2.0989,237.89,237.82,11.43551949]
[1733502153351,2.0989,237.89,237.84,2.0994]
[1733502153561,2.0989,237.89,237.82,11.43551949]
[1733502154262,2.0989,237.89,237.85,2.0993]
[1733502154760,2.0989,237.89,237.82,11.43551949]
[1733502155060,2.0988,237.9,237.82,11.43551949]
[1733502155262,2.82,237.94,237.85,10.16051949]
[1733502155458,2.82,237.94,237.89,2.0988]
[1733502155661,12.98051949,237.99,237.89,2.0988]
[1733502156061,12.98051949,237.99,237.85,10.16051949]
[1733502156062,2.0986,237.93,237.88,2.099]
[1733502156465,12.98051949,237.99,237.88,2.099]
[1733502156661,12.98051949,237.99,237.85,10.16051949]
[1733502156963,10.16051949,237.99,237.9,2.0988]
[1733502157158,12.98051949,237.99,237.9,2.0988]
[1733502157465,2.0984,237.96,237.91,2.0987]
[1733502157666,12.98051949,237.99,237.91,2.0987]
[1733502157963,2.0985,237.95,237.91,2.0987]
[1733502158466,2.0985,237.94,237.91,2.0987]
[1733502160861,2.0985,237.94,237.87,2.099]
[1733502161064,2.0984,237.96,237.85,12.98051949]
[1733502161571,2.0983,237.97,237.85,12.98051949]
[1733502161770,2.0983,237.97,237.88,10.16051949]
[1733502161965,8.47487476,238.0,237.95,2.0983]
[1733502162776,1.96851,238.0,237.96,2.0983]
[1733502163161,4.06651,238.0,237.95,6.50636476]
[1733502163366,4.06651,238.0,237.96,2.0983]
[1733502164166,1.96851,238.0,237.97,2.0982]
[1733502164970,1.96851,238.0,237.95,6.50636476]
[1733502165164,1.96851,238.0,237.92,1.2861]
[1733502165366,6.50636476,237.98,237.92,1.2861]
[1733502165570,6.50636476,237.98,237.92,3.3847]
[1733502165774,6.50636476,237.98,237.93,6.50636476]
[1733502165971,8.47487476,238.0,237.93,6.50636476]
[1733502166372,2.0981,237.98,237.94,2.0984]
[1733502166773,2.0981,237.98,237.93,8.60496476]
[1733502167472,8.47487476,238.0,237.96,2.0983]
[1733502167473,4.06651,238.0,237.96,2.0983]
[1733502167974,1.96851,238.0,237.96,2.0983]
[1733502168471,1.96851,238.0,237.97,2.0982]
[1733502169073,6.50636476,237.99,237.95,2.0983]
[1733502169371,6.50636476,237.99,237.93,6.50636476]
[1733502169575,6.50636476,237.99,237.92,1.2861]
[1733502169765,6.50636476,237.99,237.93,6.50636476]
[1733502169966,1.96851,238.0,237.95,6.50636476]
[1733502170167,4.06651,238.0,237.94,2.0984]
[1733502170475,1.96851,238.0,237.93,6.50636476]
[1733502170676,2.0981,237.99,237.95,2.0984]
[1733502170876,2.0981,237.99,237.93,6.50636476]
[1733502171676,1.96851,238.0,237.93,6.50636476]
[1733502171978,6.50636476,237.98,237.93,6.50636476]